fUST/lending_fUST_20241225
["ID","MTS","AMOUNT","RATE_DAILY","PERIOD"]
[346625512,1735129845319,-500.0,0.00011429,2]
[346625513,1735129845331,-500.0,0.00011429,2]
[346625514,1735129845340,-1025.71,0.00011429,2]
[346625515,1735129845349,-500.0,0.00011429,2]
[346625516,1735129845359,-500.0,0.0001143,2]
[346625517,1735129845369,-500.0,0.0001143,2]
[346625518,1735129845378,-500.0,0.0001143,2]
[346625519,1735129845388,-568.27,0.0001143,2]
[346625520,1735129845398,-500.0,0.0001143,2]
[346625521,1735129845407,-500.0,0.0001143,2]
[346625522,1735129845416,-500.0,0.0001143,2]
[346625523,1735129845426,-500.0,0.0001143,2]
[346625524,1735129845436,-500.0,0.0001143,2]
[346625525,1735129845445,-500.0,0.0001143,2]
[346625526,1735129845454,-500.0,0.0001143,2]
[346625527,1735129845463,-404.325973,0.0001143,2]
[346625528,1735129845473,-500.0,0.0001143,2]
[346625529,1735129845482,-404.325973,0.0001143,2]
[346625530,1735129845491,-500.0,0.0001143,2]
[346625531,1735129845500,-500.0,0.0001143,2]
[346625532,1735129845511,-682.3,0.0001143,2]
[346625533,1735129845520,-500.0,0.0001143,2]
[346625534,1735129845530,-178.290392,0.0001143,2]
[346625535,1735129845539,-178.290392,0.0001143,2]
[346625536,1735129845549,-500.0,0.0001143,2]
[346625537,1735129845561,-178.290392,0.0001143,2]
[346625538,1735129845570,-178.290392,0.0001143,2]
[346625539,1735129845580,-763.53,0.0001143,2]
[346625540,1735129845591,-500.0,0.0001143,2]
[346625541,1735129845601,-3731.85,0.0001143,2]
[346625542,1735129845611,-565.45,0.0001143,2]
[346625543,1735129845621,-500.0,0.0001143,2]
[346625544,1735129845631,-151.0,0.0001143,2]
[346625545,1735129845640,-179.746986,0.0001143,2]
[346625546,1735129845650,-517.25,0.0001143,2]
[346625547,1735129845659,-500.0,0.0001143,2]
[346625548,1735129845669,-151.0,0.0001143,2]
[346625549,1735129845678,-151.0,0.0001143,2]
[346625550,1735129845687,-500.0,0.0001143,2]
[346625551,1735129845696,-151.0,0.0001143,2]
[346625552,1735129845706,-151.0,0.0001143,2]
[346625553,1735129845715,-500.0,0.0001143,2]
[346625554,1735129845725,-500.0,0.0001143,2]
[346625555,1735129845734,-151.0,0.0001143,2]
[346625556,1735129845744,-151.0,0.0001143,2]
[346625557,1735129845754,-185.541004,0.0001143,2]
[346625558,1735129845763,-257.990076,0.0001143,2]
[346625559,1735129845773,-500.0,0.0001143,2]
[346625560,1735129845783,-264.411441,0.0001143,2]
[346625561,1735129845792,-264.411441,0.0001143,2]
[346625562,1735129845803,-264.411441,0.0001143,2]
[346625563,1735129845812,-264.411441,0.0001143,2]
[346625564,1735129845821,-359.89375982,0.0001143,2]
[346625565,1735129845831,-500.0,0.0001143,2]
[346625566,1735129845841,-14736.03,0.0001143,2]
[346625567,1735129845851,-3976.36,0.0001143,2]
[346625568,1735129845860,-500.0,0.0001143,2]
[346625569,1735129845869,-358.942033,0.0001143,2]
[346625570,1735129845879,-358.942033,0.0001143,2]
[346625571,1735129845888,-500.0,0.00011431,2]
[346625572,1735129845899,-500.0,0.00011431,2]
[346625573,1735129845908,-500.0,0.00011431,2]
[346625574,1735129845917,-500.0,0.00011431,2]
[346625575,1735129845926,-500.0,0.00011431,2]
[346625576,1735129845936,-500.0,0.00011431,2]
[346625577,1735129845945,-500.0,0.00011431,2]
[346625578,1735129845955,-542.65,0.00011431,2]
[346625579,1735129845964,-500.0,0.00011431,2]
[346625580,1735129845974,-716.81,0.00011431,2]
[346625581,1735129845984,-500.0,0.00011431,2]
[346625582,1735129845994,-404.325973,0.00011431,2]
[346625583,1735129846005,-404.325973,0.00011431,2]
[346625585,1735129846015,-404.325973,0.00011431,2]
[346625586,1735129846024,-404.325973,0.00011431,2]
[346625588,1735129846034,-500.0,0.00011431,2]
[346625590,1735129846043,-151.0,0.00011431,2]
[346625592,1735129846052,-286.77492,0.00011431,2]
[346625594,1735129846062,-500.0,0.00011431,2]
[346625596,1735129846072,-151.0,0.00011431,2]
[346625598,1735129846081,-264.411441,0.00011431,2]
[346625600,1735129846090,-264.411441,0.00011431,2]
[346625602,1735129846101,-619.95,0.00011432,2]
[346625604,1735129846109,-178.290392,0.00011432,2]
[346625606,1735129846119,-178.290392,0.00011432,2]
[346625608,1735129846128,-2119.0,0.00011439,2]
[346625610,1735129846137,-534.0,0.00011439,2]
[346625611,1735129846146,-2355.0,0.00011439,2]
[346625613,1735129846156,-358.942033,0.00011439,2]
[346625615,1735129846165,-179.585,0.00011489,2]
[346625617,1735129846174,-151.39,0.00011489,2]
[346625619,1735129846184,-150.0,0.00011489,2]
[346625621,1735129846193,-225.974,0.00011489,2]
[346625623,1735129846203,-500.0,0.00011503,2]
[346625625,1735129846212,-500.0,0.0001156,2]
[346625627,1735129846222,-500.0,0.0001156,2]
[346625629,1735129846231,-500.0,0.0001157,2]
[346625631,1735129846241,-249.19028413,0.0001157,2]
[346625633,1735129846251,-500.0,0.0001157,2]
[346625635,1735129846264,-666.0,0.00011605,2]
[346625636,1735129846273,-352.1566237,0.00011644,2]
[346625637,1735129846283,-863.28,0.00011702,2]
[346625638,1735129846292,-500.0,0.00011702,2]
[346625640,1735129846303,-4268.84,0.00011703,2]
[346625642,1735129846312,-1652.94,0.00011703,2]
[346625644,1735129846322,-1692.25,0.00011703,2]
[346625646,1735129846331,-915.92,0.00011703,2]
[346625647,1735129846340,-829.21,0.00011703,2]
[346625649,1735129846351,-500.0,0.00011703,2]
[346625651,1735129846360,-500.0,0.00011703,2]
[346625653,1735129846369,-500.0,0.00011703,2]
[346625655,1735129846380,-500.0,0.00011703,2]
[346625657,1735129846390,-1025.71,0.00011703,2]
[346625659,1735129846399,-500.0,0.00011703,2]
[346625661,1735129846409,-500.0,0.00011704,2]
[346625663,1735129846418,-500.0,0.00011704,2]
[346625665,1735129846427,-500.0,0.00011704,2]
[346625667,1735129846436,-568.27,0.00011704,2]
[346625669,1735129846446,-500.0,0.00011704,2]
[346625671,1735129846455,-500.0,0.00011704,2]
[346625672,1735129846465,-500.0,0.00011704,2]
[346625674,1735129846474,-500.0,0.00011704,2]
[346625676,1735129846483,-500.0,0.00011704,2]
[346625678,1735129846492,-500.0,0.00011704,2]
[346625680,1735129846502,-500.0,0.00011704,2]
[346625682,1735129846516,-404.325973,0.00011704,2]
[346625684,1735129846525,-500.0,0.00011704,2]
[346625686,1735129846534,-500.0,0.00011704,2]
[346625688,1735129846543,-404.325973,0.00011704,2]
[346625689,1735129846554,-500.0,0.00011704,2]
[346625691,1735129846565,-682.3,0.00011704,2]
[346625693,1735129846575,-500.0,0.00011704,2]
[346625696,1735129846585,-178.290392,0.00011704,2]
[346625698,1735129846596,-178.290392,0.00011704,2]
[346625700,1735129846606,-500.0,0.00011704,2]
[346625702,1735129846616,-763.53,0.00011704,2]
[346625704,1735129846625,-178.290392,0.00011704,2]
[346625706,1735129846635,-178.290382,0.00011704,2]
[346625708,1735129846645,-500.0,0.00011704,2]
[346625710,1735129846654,-3731.85,0.00011704,2]
[346625712,1735129846664,-565.45,0.00011704,2]
[346625714,1735129846673,-500.0,0.00011704,2]
[346625716,1735129846682,-517.25,0.00011704,2]
[346625717,1735129846691,-500.0,0.00011704,2]
[346625719,1735129846701,-151.0,0.00011704,2]
[346625721,1735129846711,-151.0,0.00011704,2]
[346625723,1735129846721,-500.0,0.00011704,2]
[346625725,1735129846730,-500.0,0.00011704,2]
[346625727,1735129846739,-243.8353094,0.00011704,2]
[346625729,1735129846748,-151.0,0.00011704,2]
[346625731,1735129846760,-151.0,0.00011704,2]
[346625733,1735129846769,-500.0,0.00011704,2]
[346625735,1735129846778,-264.411441,0.00011704,2]
[346625737,1735129846787,-264.411441,0.00011704,2]
[346625739,1735129846797,-264.411441,0.00011704,2]
[346625741,1735129846805,-264.411441,0.00011704,2]
[346625743,1735129846814,-500.0,0.00011704,2]
[346625745,1735129846824,-14736.03,0.00011704,2]
[346625747,1735129846833,-3976.36,0.00011704,2]
[346625749,1735129846843,-500.0,0.00011704,2]
[346625751,1735129846852,-500.0,0.00011705,2]
[346625753,1735129846861,-500.0,0.00011705,2]
[346625755,1735129846870,-500.0,0.00011705,2]
[346625757,1735129846879,-500.0,0.00011705,2]
[346625759,1735129846889,-500.0,0.00011705,2]
[346625761,1735129846898,-500.0,0.00011705,2]
[346625763,1735129846907,-500.0,0.00011705,2]
[346625765,1735129846916,-542.65,0.00011705,2]
[346625767,1735129846925,-500.0,0.00011705,2]
[346625769,1735129846935,-716.81,0.00011705,2]
[346625771,1735129846944,-500.0,0.00011705,2]
[346625773,1735129846954,-404.325973,0.00011705,2]
[346625775,1735129846963,-404.325973,0.00011705,2]
[346625777,1735129846972,-404.325973,0.00011705,2]
[346625779,1735129846982,-404.325975,0.00011705,2]
[346625781,1735129846992,-500.0,0.00011705,2]
[346625783,1735129847001,-151.0,0.00011705,2]
[346625785,1735129847013,-500.0,0.00011705,2]
[346625787,1735129847022,-151.0,0.00011705,2]
[346625789,1735129847031,-264.411441,0.00011705,2]
[346625791,1735129847041,-264.411439,0.00011705,2]
[346625793,1735129847050,-619.95,0.00011706,2]
[346625795,1735129847060,-420.0,0.00011957,2]
[346625797,1735129847069,-420.0,0.00011968,2]
[346625798,1735129847078,-863.28,0.00011976,2]
[346625799,1735129847088,-500.0,0.00011976,2]
[346625800,1735129847097,-4268.84,0.00011977,2]
[346625801,1735129847106,-1652.94,0.00011977,2]
[346625802,1735129847115,-1692.25,0.00011977,2]
[346625803,1735129847125,-915.92,0.00011977,2]
[346625804,1735129847134,-829.21,0.00011977,2]
[346625805,1735129847143,-500.0,0.00011977,2]
[346625806,1735129847152,-500.0,0.00011977,2]
[346625807,1735129847162,-500.0,0.00011977,2]
[346625808,1735129847171,-500.0,0.00011977,2]
[346625809,1735129847181,-1025.71,0.00011977,2]
[346625810,1735129847190,-500.0,0.00011977,2]
[346625811,1735129847199,-500.0,0.00011978,2]
[346625812,1735129847208,-500.0,0.00011978,2]
[346625813,1735129847218,-500.0,0.00011978,2]
[346625814,1735129847227,-568.27,0.00011978,2]
[346625815,1735129847237,-500.0,0.00011978,2]
[346625816,1735129847247,-500.0,0.00011978,2]
[346625817,1735129847256,-500.0,0.00011978,2]
[346625818,1735129847265,-500.0,0.00011978,2]
[346625819,1735129847275,-500.0,0.00011978,2]
[346625820,1735129847284,-500.0,0.00011978,2]
[346625821,1735129847294,-500.0,0.00011978,2]
[346625822,1735129847303,-500.0,0.00011978,2]
[346625823,1735129847313,-500.0,0.00011978,2]
[346625824,1735129847322,-500.0,0.00011978,2]
[346625825,1735129847332,-682.3,0.00011978,2]
[346625827,1735129847341,-278.52525293,0.00011978,2]
[346625828,1735129847351,-500.0,0.00011978,2]
[346625829,1735129847360,-763.53,0.00011978,2]
[346625831,1735129847369,-500.0,0.00011978,2]
[346625833,1735129847378,-3731.85,0.00011978,2]
[346625835,1735129847387,-565.45,0.00011978,2]
[346625837,1735129847396,-500.0,0.00011978,2]
[346625839,1735129847405,-517.25,0.00011978,2]
[346625841,1735129847415,-500.0,0.00011978,2]
[346625843,1735129847424,-500.0,0.00011978,2]
[346625845,1735129847433,-500.0,0.00011978,2]
[346625847,1735129847442,-500.0,0.00011978,2]
[346625849,1735129847451,-500.0,0.00011978,2]
[346625851,1735129847460,-14736.03,0.00011978,2]
[346625853,1735129847469,-3976.36,0.00011978,2]
[346625855,1735129847478,-500.0,0.00011978,2]
[346625856,1735129847487,-500.0,0.00011979,2]
[346625859,1735129847496,-500.0,0.00011979,2]
[346625861,1735129847506,-500.0,0.00011979,2]
[346625863,1735129847516,-500.0,0.00011979,2]
[346625864,1735129847526,-500.0,0.00011979,2]
[346625866,1735129847535,-500.0,0.00011979,2]
[346625868,1735129847544,-500.0,0.00011979,2]
[346625871,1735129847555,-542.65,0.00011979,2]
[346625872,1735129847566,-500.0,0.00011979,2]
[346625874,1735129847575,-716.81,0.00011979,2]
[346625876,1735129847584,-500.0,0.00011979,2]
[346625878,1735129847595,-500.0,0.00011979,2]
[346625880,1735129847604,-500.0,0.00011979,2]
[346625882,1735129847614,-619.95,0.0001198,2]
[346625884,1735129847623,-9318.22773675,0.00012,2]
[346625886,1735129847634,-13000.0,0.00012,2]
[346625888,1735129847644,-1000.0,0.00012108,2]
[346625890,1735129847653,-1000.0,0.00012108,2]
[346625892,1735129847662,-500.0,0.00012108,2]
[346625894,1735129847671,-1000.0,0.00012118,2]
[346625896,1735129847680,-863.28,0.0001225,2]
[346625898,1735129847689,-500.0,0.0001225,2]
[346625900,1735129847698,-4268.84,0.00012251,2]
[346625902,1735129847707,-1652.94,0.00012251,2]
[346625904,1735129847716,-1692.25,0.00012251,2]
[346625906,1735129847725,-915.92,0.00012251,2]
[346625908,1735129847734,-829.21,0.00012251,2]
[346625910,1735129847743,-500.0,0.00012251,2]
[346625912,1735129847752,-500.0,0.00012251,2]
[346625914,1735129847763,-362.80483168,0.00012251,2]
[346625916,1735129847772,-500.0,0.00012251,2]
[346625918,1735129847781,-1025.71,0.00012251,2]
[346625919,1735129847789,-500.0,0.00012251,2]
[346625920,1735129847799,-500.0,0.00012252,2]
[346625921,1735129847807,-500.0,0.00012252,2]
[346625922,1735129847816,-500.0,0.00012252,2]
[346625923,1735129847826,-568.27,0.00012252,2]
[346625924,1735129847835,-500.0,0.00012252,2]
[346625925,1735129847844,-500.0,0.00012252,2]
[346625926,1735129847853,-500.0,0.00012252,2]
[346625927,1735129847863,-500.0,0.00012252,2]
[346625928,1735129847872,-500.0,0.00012252,2]
[346625929,1735129847881,-500.0,0.00012252,2]
[346625930,1735129847891,-500.0,0.00012252,2]
[346625931,1735129847900,-500.0,0.00012252,2]
[346625932,1735129847909,-500.0,0.00012252,2]
[346625933,1735129847918,-500.0,0.00012252,2]
[346625934,1735129847927,-682.3,0.00012252,2]
[346625935,1735129847936,-500.0,0.00012252,2]
[346625936,1735129847946,-763.53,0.00012252,2]
[346625937,1735129847955,-500.0,0.00012252,2]
[346625938,1735129847965,-3731.85,0.00012252,2]
[346625939,1735129847974,-565.45,0.00012252,2]
[346625940,1735129847984,-500.0,0.00012252,2]
[346625941,1735129847993,-517.25,0.00012252,2]
[346625942,1735129848002,-500.0,0.00012252,2]
[346625943,1735129848013,-500.0,0.00012252,2]
[346625944,1735129848023,-500.0,0.00012252,2]
[346625945,1735129848032,-500.0,0.00012252,2]
[346625946,1735129848043,-500.0,0.00012252,2]
[346625947,1735129848052,-14736.03,0.00012252,2]
[346625948,1735129848062,-3976.36,0.00012252,2]
[346625949,1735129848071,-500.0,0.00012252,2]
[346625950,1735129848081,-500.0,0.00012253,2]
[346625951,1735129848090,-500.0,0.00012253,2]
[346625952,1735129848099,-500.0,0.00012253,2]
[346625953,1735129848109,-500.0,0.00012253,2]
[346625954,1735129848118,-500.0,0.00012253,2]
[346625955,1735129848128,-500.0,0.00012253,2]
[346625956,1735129848137,-542.65,0.00012253,2]
[346625957,1735129848147,-500.0,0.00012253,2]
[346625959,1735129848156,-716.81,0.00012253,2]
[346625961,1735129848165,-500.0,0.00012253,2]
[346625963,1735129848175,-500.0,0.00012253,2]
[346625965,1735129848183,-500.0,0.00012253,2]
[346625967,1735129848193,-619.95,0.00012254,2]
[346625969,1735129848202,-228.0,0.0001231,2]
[346625971,1735129848212,-153.0,0.00012521,2]
[346625973,1735129848222,-153.0,0.00012521,2]
[346625975,1735129848231,-863.28,0.00012524,2]
[346625977,1735129848242,-500.0,0.00012524,2]
[346625979,1735129848251,-4268.84,0.00012525,2]
[346625981,1735129848262,-1652.94,0.00012525,2]
[346625983,1735129848272,-1692.25,0.00012525,2]
[346625985,1735129848283,-915.92,0.00012525,2]
[346625987,1735129848292,-829.21,0.00012525,2]
[346626000,1735129848302,-500.0,0.00012525,2]
[346626003,1735129848427,-500.0,0.00012525,2]
[346626005,1735129848437,-500.0,0.00012525,2]
[346626007,1735129848446,-1025.71,0.00012525,2]
[346626008,1735129848456,-500.0,0.00012525,2]
[346626010,1735129848466,-500.0,0.00012526,2]
[346626012,1735129848475,-500.0,0.00012526,2]
[346626014,1735129848485,-500.0,0.00012526,2]
[346626016,1735129848494,-568.27,0.00012526,2]
[346626018,1735129848504,-500.0,0.00012526,2]
[346626020,1735129848515,-500.0,0.00012526,2]
[346626022,1735129848524,-500.0,0.00012526,2]
[346626024,1735129848533,-546.21727357,0.00012526,2]
[346626026,1735129848543,-531.86368898,0.00012526,2]
[346626028,1735129848554,-367.13382595,0.00012526,2]
[346626030,1735129848564,-500.0,0.00012526,2]
[346626032,1735129848574,-500.0,0.00012526,2]
[346626034,1735129848584,-500.0,0.00012526,2]
[346626036,1735129848595,-500.0,0.00012526,2]
[346626038,1735129848604,-682.3,0.00012526,2]
[346626040,1735129848614,-188.52439004,0.00012526,2]
[346626042,1735129848624,-763.53,0.00012526,2]
[346626044,1735129848635,-500.0,0.00012526,2]
[346626046,1735129848644,-3731.85,0.00012526,2]
[346626048,1735129848654,-565.45,0.00012526,2]
[346626050,1735129848664,-500.0,0.00012526,2]
[346626052,1735129848674,-517.25,0.00012526,2]
[346626055,1735129848684,-500.0,0.00012526,2]
[346626056,1735129848693,-500.0,0.00012526,2]
[346626058,1735129848703,-500.0,0.00012526,2]
[346626060,1735129848712,-231.36181845,0.00012526,2]
[346626063,1735129848723,-486.47137246,0.00012526,2]
[346626065,1735129848733,-14736.03,0.00012526,2]
[346626067,1735129848743,-3976.36,0.00012526,2]
[346626069,1735129848754,-500.0,0.00012526,2]
[346626071,1735129848764,-500.0,0.00012527,2]
[346626073,1735129848774,-500.0,0.00012527,2]
[346626075,1735129848784,-500.0,0.00012527,2]
[346626077,1735129848793,-500.0,0.00012527,2]
[346626079,1735129848802,-500.0,0.00012527,2]
[346626081,1735129848812,-500.0,0.00012527,2]
[346626083,1735129848821,-542.65,0.00012527,2]
[346626085,1735129848831,-500.0,0.00012527,2]
[346626087,1735129848840,-716.81,0.00012527,2]
[346626089,1735129848849,-647.25061643,0.00012527,2]
[346626091,1735129848859,-500.0,0.00012527,2]
[346626093,1735129848869,-500.0,0.00012527,2]
[346626095,1735129848878,-619.95,0.00012528,2]
[346626097,1735129848888,-600.0,0.0001262,2]
[346626099,1735129848897,-500.0,0.00012745,2]
[346626101,1735129848907,-752.94001549,0.00012752,2]
[346626103,1735129848916,-863.28,0.00012798,2]
[346626105,1735129848925,-500.0,0.00012798,2]
[346626107,1735129848935,-4268.84,0.00012799,2]
[346626109,1735129848944,-1652.94,0.00012799,2]
[346626111,1735129848954,-1692.25,0.00012799,2]
[346626112,1735129848963,-915.92,0.00012799,2]
[346626114,1735129848973,-829.21,0.00012799,2]
[346626116,1735129848982,-500.0,0.00012799,2]
[346626118,1735129848994,-500.0,0.00012799,2]
[346626120,1735129849003,-500.0,0.00012799,2]
[346626122,1735129849015,-1025.71,0.00012799,2]
[346626125,1735129849025,-500.0,0.00012799,2]
[346626126,1735129849036,-157.97533082,0.000128,2]
[346626128,1735129849046,-500.0,0.000128,2]
[346626130,1735129849056,-528.25187452,0.000128,2]
[346626132,1735129849065,-500.0,0.000128,2]
[346626134,1735129849075,-568.27,0.000128,2]
[346626136,1735129849084,-500.0,0.000128,2]
[346626138,1735129849094,-500.0,0.000128,2]
[346626140,1735129849103,-500.0,0.000128,2]
[346626142,1735129849112,-307.25031627,0.000128,2]
[346626144,1735129849121,-500.0,0.000128,2]
[346626146,1735129849131,-500.0,0.000128,2]
[346626148,1735129849140,-500.0,0.000128,2]
[346626150,1735129849149,-682.3,0.000128,2]
[346626152,1735129849158,-763.53,0.000128,2]
[346626154,1735129849168,-584.47436573,0.000128,2]
[346626156,1735129849177,-3731.85,0.000128,2]
[346626158,1735129849187,-565.45,0.000128,2]
[346626160,1735129849197,-500.0,0.000128,2]
[346626162,1735129849206,-517.25,0.000128,2]
[346626164,1735129849215,-500.0,0.000128,2]
[346626166,1735129849225,-500.0,0.000128,2]
[346626168,1735129849234,-500.0,0.000128,2]
[346626170,1735129849244,-14736.03,0.000128,2]
[346626172,1735129849253,-3976.36,0.000128,2]
[346626174,1735129849264,-500.0,0.000128,2]
[346626176,1735129849273,-500.0,0.00012801,2]
[346626178,1735129849283,-500.0,0.00012801,2]
[346626180,1735129849292,-500.0,0.00012801,2]
[346626182,1735129849301,-500.0,0.00012801,2]
[346626184,1735129849311,-500.0,0.00012801,2]
[346626186,1735129849321,-500.0,0.00012801,2]
[346626188,1735129849330,-542.65,0.00012801,2]
[346626190,1735129849340,-500.0,0.00012801,2]
[346626192,1735129849350,-716.81,0.00012801,2]
[346626194,1735129849359,-500.0,0.00012801,2]
[346626196,1735129849369,-500.0,0.00012801,2]
[346626198,1735129849378,-619.95,0.00012802,2]
[346626200,1735129849388,-9684.25152862,0.00012805,2]
[346626202,1735129849397,-2333.51818488,0.000129,2]
[346626204,1735129849406,-1522.82966281,0.000129,2]
[346626206,1735129849415,-1522.82966281,0.000129,2]
[346626208,1735129849424,-1522.82966281,0.000129,2]
[346626210,1735129849435,-251.12007947,0.0001295,2]
[346626212,1735129849444,-890575.691123,0.00012999,2]
[346626214,1735129849453,-548905.95379399,0.00013,2]
[346626257,1735129849900,-500.0,0.0001088,2]
[346626259,1735129849909,-500.23903858,0.00011154,2]
[346626261,1735129849919,-358.942033,0.00011156,2]
[346626263,1735129849928,-358.942033,0.00011157,2]
[346626265,1735129849938,-358.942033,0.00011218,2]
[346626267,1735129849948,-358.942033,0.00011703,2]
[346626269,1735129849957,-358.942033,0.00011704,2]
[346626271,1735129849966,-358.942033,0.00011705,2]
[346626273,1735129849976,-358.942033,0.00011978,2]
[346626275,1735129849985,-981.46183482,0.00013,2]
[346626277,1735129849998,-33069.048125,0.00013,2]
[346626408,1735130059396,500.0,0.0001827,120]
[346626409,1735130068492,1396.2070221,0.00010018,2]
[346626410,1735130186200,4050.0,0.0001827,120]
[346626411,1735130379186,9795.1785555,9.949e-05,2]
[346626412,1735130399180,1008.98021,0.00023,120]
[346626413,1735130543144,207.8913682,0.0001,2]
[346626416,1735130825109,-600.0,0.00010144,2]
[346626417,1735130825132,-300.0,0.00010246,2]
[346626418,1735130825152,-1829.25639703,0.00010247,2]
[346626420,1735130932024,-1066.31941197,0.00010097,2]
[346626421,1735130932087,-1066.31941197,0.00010097,2]
[346626422,1735130932256,-775.54135764,0.00010097,2]
[346626423,1735130956972,-300.0,0.00010096,2]
[346626424,1735130956998,-300.0,0.00010096,2]
[346626425,1735130957026,-524.4830156,0.00010097,2]
[346626426,1735130957057,-1124.4830156,0.00010097,2]
[346626427,1735130957088,-1124.4830156,0.00010097,2]
[346626428,1735130957128,-279.73817033,0.00010097,2]
[346626429,1735130964232,-6813.22749884,0.00010097,2]
[346626430,1735130970140,-153.46367445,0.00010097,2]
[346626496,1735131038628,-300.0,0.00010877,2]
[346626497,1735131038638,-300.0,0.00010877,2]
[346626498,1735131038647,-500.0,0.00010878,2]
[346626499,1735131038656,-2845.9,0.00010878,2]
[346626500,1735131038666,-1101.96,0.00010878,2]
[346626501,1735131038675,-500.0,0.00010878,2]
[346626502,1735131038685,-1145.8,0.00010878,2]
[346626503,1735131038695,-610.61,0.00010878,2]
[346626504,1735131038705,-500.0,0.00010878,2]
[346626505,1735131038715,-500.0,0.00010878,2]
[346626506,1735131038725,-575.87,0.00010878,2]
[346626507,1735131038735,-500.0,0.00010878,2]
[346626508,1735131038744,-613.0,0.00010878,2]
[346626509,1735131038754,-402.03855543,0.00010878,2]
[346626510,1735131038766,-97.96144457,0.00010878,2]
[346626511,1735131038776,-403.25943383,0.00010878,2]
[346626513,1735131038785,-500.0,0.00010878,2]
[346626515,1735131038795,-500.0,0.00010878,2]
[346626516,1735131038804,-500.0,0.00010878,2]
[346626517,1735131038814,-683.81,0.00010878,2]
[346626518,1735131038823,-500.0,0.00010879,2]
[346626519,1735131038835,-500.0,0.00010879,2]
[346626520,1735131038845,-500.0,0.00010879,2]
[346626521,1735131038854,-500.0,0.00010879,2]
[346626522,1735131038864,-500.0,0.00010879,2]
[346626523,1735131038876,-500.0,0.00010879,2]
[346626524,1735131038887,-461.79208545,0.00010879,2]
[346626525,1735131038897,-500.0,0.00010879,2]
[346626526,1735131038906,-500.0,0.00010879,2]
[346626527,1735131038917,-509.02,0.00010879,2]
[346626528,1735131038926,-500.0,0.00010879,2]
[346626529,1735131038935,-2487.9,0.00010879,2]
[346626530,1735131038944,-500.0,0.00010879,2]
[346626531,1735131038955,-500.0,0.00010879,2]
[346626532,1735131038965,-500.0,0.00010879,2]
[346626533,1735131038974,-500.0,0.00010879,2]
[346626534,1735131038984,-503.02436547,0.00010879,2]
[346626535,1735131038993,-500.0,0.00010879,2]
[346626536,1735131039003,-230.09,0.00010879,2]
[346626537,1735131039013,-9826.82,0.00010879,2]
[346626538,1735131039022,-500.0,0.00010879,2]
[346626539,1735131039032,-1153.32141442,0.00010879,2]
[346626540,1735131039046,-1497.57858558,0.00010879,2]
[346626541,1735131039056,-500.0,0.00010879,2]
[346626542,1735131039065,-69.58012093,0.0001088,2]
[346626560,1735131040600,-447.64157357,0.0001088,2]
[346626562,1735131040610,-500.0,0.0001088,2]
[346626564,1735131040621,-500.0,0.0001088,2]